bitfinex/quotes_SOLUSD_20250920
["timestamp","ask_amount","ask_price","bid_price","bid_amount"]
[1758381560495,0.1,241.19,241.16,33.93986638]
[1758381560807,0.1,241.19,241.16,34.60986638]
[1758381561307,0.1,241.19,241.17,0.67]
[1758381561483,0.1,241.19,241.16,32.5]
[1758381561683,0.1,241.19,241.16,36.64658664]
[1758381561885,0.1,241.19,241.17,0.67]
[1758381563695,0.1,241.19,241.16,32.5]
[1758381563891,4.24623716,241.19,241.16,32.5]
[1758381564393,0.1,241.19,241.16,33.17]
[1758381564988,0.1,241.19,241.16,32.5]
[1758381565191,0.1,241.19,241.17,0.67]
[1758381565603,0.1,241.19,241.16,32.5]
[1758381565780,0.1,241.19,241.17,13.59559401]
[1758381565984,0.1,241.19,241.18,13.59559401]
[1758381566217,0.1,241.19,241.18,14.29559401]
[1758381566502,0.1,241.19,241.18,15.73546039]
[1758381567281,0.1,241.19,241.18,19.88174117]
[1758381567993,4.8147155,241.28,241.19,13.59559401]
[1758381568304,4.8147155,241.28,241.2,33.12]
[1758381568488,1.43986638,241.27,241.21,15.73546039]
[1758381568891,1.43986638,241.26,241.21,15.73546039]
[1758381569101,20.71842445,241.34,241.21,15.73546039]
[1758381569102,6.2549441,241.25,241.21,0.7]
[1758381569290,6.2549441,241.25,241.2,32.42]
[1758381569612,4.14507772,241.25,241.21,0.7]
[1758381571086,0.67,241.26,241.21,4.84561121]
[1758381571287,2.10986638,241.26,241.21,0.7]
[1758381571487,6.25483213,241.26,241.21,0.7]
[1758381571707,0.67,241.26,241.2,38.00577394]
[1758381571913,2.10986638,241.26,241.22,0.7]
[1758381572112,4.81499248,241.26,241.22,0.7]
[1758381572317,6.25485886,241.26,241.2,38.70577394]
[1758381573017,2.10986638,241.25,241.2,32.42]
[1758381573193,0.67,241.24,241.2,32.42]
[1758381573391,0.67,241.23,241.2,32.42]
[1758381573599,2.10986638,241.22,241.2,32.42]
[1758381573910,1.43986638,241.22,241.2,32.42]
[1758381574119,1.43986638,241.23,241.2,32.42]
[1758381574414,0.67,241.23,241.2,32.42]
[1758381574816,1.43986638,241.24,241.2,32.42]
[1758381575006,4.14507772,241.25,241.2,33.12]
[1758381575324,6.2549441,241.25,241.2,33.12]
[1758381575494,1.43986638,241.25,241.21,0.7]
[1758381575699,2.10986638,241.25,241.2,32.42]
[1758381576006,2.10986638,241.25,241.2,33.12]
[1758381576515,2.10986638,241.28,241.21,15.73546039]
[1758381576705,2.10986638,241.28,241.22,0.7]
[1758381576900,0.1,241.29,241.23,1.43986638]
[1758381577204,0.1,241.29,241.23,6.28517791]
[1758381577411,5.68438534,241.29,241.23,0.7]
[1758381577805,1.43986638,241.28,241.23,0.7]
[1758381578007,2.10986638,241.28,241.23,0.7]
[1758381578218,0.67,241.28,241.23,0.7]
[1758381578416,0.67,241.28,241.24,0.7]
[1758381578895,0.67,241.27,241.21,15.03546039]
[1758381579099,4.81476538,241.27,241.21,19.88118998]
[1758381579308,5.58463176,241.27,241.22,0.7]
[1758381579512,0.77,241.29,241.24,1.43986638]
[1758381579706,0.77,241.29,241.24,0.7]
[1758381580101,0.77,241.29,241.25,0.7]
[1758381581096,4.91439148,241.29,241.25,0.7]
[1758381581621,0.1,241.29,241.25,0.7]
[1758381582518,4.24439441,241.29,241.25,0.7]
[1758381582925,3.74439441,241.29,241.25,0.7]
[1758381583292,4.14421881,241.3,241.25,0.7]
[1758381583498,6.25408519,241.3,241.25,0.7]
[1758381583699,4.81421881,241.3,241.26,0.7]
[1758381583917,4.81421881,241.3,241.24,2.13986638]
[1758381584516,4.81422037,241.3,241.24,6.28502055]
[1758381584698,6.25408675,241.3,241.24,2.13986638]
[1758381584906,6.25408675,241.3,241.24,0.7]
[1758381585422,6.25408675,241.3,241.24,2.13986638]
[1758381586001,4.14383597,241.33,241.27,1.43986638]
[1758381586226,4.14383597,241.33,241.28,0.7]
[1758381586424,5.58370235,241.33,241.28,0.7]
[1758381586594,0.67,241.32,241.28,0.7]
[1758381586798,0.67,241.32,241.27,1.43986638]
[1758381587013,0.67,241.32,241.27,2.13986638]
[1758381587217,0.67,241.32,241.27,6.28457092]
[1758381587422,3.31383597,241.33,241.27,4.14470454]
[1758381587619,4.14336026,241.35,241.28,0.7]
[1758381587817,1.43986638,241.33,241.28,0.7]
[1758381588320,1.43986638,241.33,241.29,0.7]
[1758381588515,1.43986638,241.33,241.28,0.7]
[1758381588819,1.43986638,241.33,241.29,0.7]
[1758381589208,10.3580599,241.36,241.29,0.7]
[1758381589406,1.43986638,241.33,241.29,0.7]
[1758381589616,5.58357942,241.33,241.29,0.7]
[1758381590028,4.14371304,241.33,241.29,0.7]
[1758381591028,4.14353194,241.34,241.27,17.09005826]
[1758381591324,4.14353194,241.34,241.28,0.7]
[1758381591325,5.58339832,241.34,241.28,0.7]
[1758381591713,6.18339832,241.34,241.28,0.7]
[1758381592109,1.43986638,241.32,241.28,0.7]
[1758381592317,1.43986638,241.33,241.28,0.7]
[1758381592526,1.43986638,241.33,241.27,12.24535372]
[1758381592822,2.03986638,241.33,241.26,2.13986638]
[1758381593024,6.18373101,241.33,241.27,0.7]
[1758381593423,4.14386463,241.33,241.27,2.13986638]
[1758381593730,4.14386463,241.33,241.28,0.7]
[1758381594330,4.14386463,241.33,241.28,4.84454266]
[1758381594522,4.14386463,241.33,241.29,0.7]
[1758381594826,4.14386463,241.33,241.27,0.7]
[1758381595023,4.74386463,241.33,241.27,0.7]
[1758381595220,1.43986638,241.32,241.25,31.2]
[1758381595427,1.43986638,241.32,241.21,23.95975234]
[1758381595428,1.43986638,241.28,241.22,33.1]
[1758381595615,1.43986638,241.28,241.22,45.55668451]
[1758381595811,2.03986638,241.29,241.22,45.55668451]
[1758381596032,0.6,241.29,241.22,46.99655089]
[1758381596234,4.14437731,241.3,241.23,0.67]
[1758381596528,5.58424369,241.3,241.23,2.10986638]
[1758381596829,1.43986638,241.31,241.24,2.10986638]
[1758381597131,1.43986638,241.31,241.25,0.67]
[1758381597307,2.03986638,241.32,241.25,2.10986638]
[1758381597629,4.14382824,241.33,241.26,2.10986638]
[1758381597927,4.14382824,241.33,241.27,2.10986638]
[1758381598131,2.03986638,241.34,241.27,1.43986638]
[1758381598319,4.74353805,241.34,241.28,2.10986638]
[1758381598520,4.74353805,241.34,241.28,0.67]
[1758381598708,0.6,241.34,241.28,6.25440048]
[1758381599026,4.7435448,241.34,241.28,2.10986638]
[1758381600020,0.6,241.33,241.27,1.43986638]
[1758381600329,0.6,241.32,241.26,0.67]
[1758381600531,1.43986638,241.31,241.23,4.81542138]
[1758381600734,1.43986638,241.28,241.22,44.85668451]
[1758381600913,0.6,241.27,241.22,12.45668451]
[1758381601109,0.6,241.29,241.23,0.67]
[1758381601307,0.6,241.29,241.23,2.10986638]
[1758381601508,0.6,241.29,241.23,0.67]
[1758381601716,0.6,241.29,241.23,2.10986638]
[1758381601919,3.37996418,241.33,241.27,1.43986638]
[1758381602125,0.6,241.33,241.28,1.43986638]
[1758381602422,0.6,241.32,241.27,1.43986638]
[1758381602609,1.43986638,241.34,241.27,1.43986638]
[1758381602610,4.14338102,241.35,241.27,1.43986638]
[1758381602817,2.03986638,241.34,241.27,1.43986638]
[1758381603251,0.6,241.33,241.24,37.23524954]
[1758381603422,0.6,241.32,241.25,1.43986638]
[1758381603814,4.14338102,241.35,241.24,37.23524954]
[1758381603815,4.14338102,241.35,241.27,1.43986638]
[1758381604133,4.14338102,241.35,241.28,2.10986638]
[1758381604442,4.14338102,241.35,241.29,0.67]
[1758381604636,1.43986638,241.33,241.29,0.67]
[1758381604834,1.43986638,241.32,241.27,0.67]
[1758381605040,0.6,241.33,241.26,4.14489829]
[1758381605337,1.43986638,241.32,241.27,0.67]
[1758381605638,1.43986638,241.32,241.28,0.67]
[1758381606013,4.14354599,241.34,241.28,4.81455772]
[1758381606435,2.78390984,241.35,241.29,0.67]
[1758381606633,6.92727662,241.35,241.29,0.67]
[1758381606841,1.43986638,241.33,241.29,0.67]
[1758381607318,1.43986638,241.33,241.3,0.67]
[1758381607518,4.14336678,241.35,241.3,0.67]
[1758381607718,1.43986638,241.32,241.27,0.67]
[1758381608036,4.14379313,241.33,241.28,0.67]
[1758381608227,2.78498263,241.36,241.29,0.67]
[1758381608228,4.14352522,241.35,241.29,0.67]
[1758381608431,1.43986638,241.33,241.29,0.67]
[1758381609045,1.43986638,241.3,241.2,0.67]
[1758381609220,1.43986638,241.26,241.2,0.67]
[1758381609539,1.43986638,241.27,241.2,33.30986638]
[1758381609723,2.24789057,241.27,241.2,34.11789057]
[1758381610238,2.24789057,241.27,241.2,31.87]
[1758381610421,2.24789057,241.26,241.2,31.87]
[1758381610630,2.24789057,241.26,241.21,4.1457651]
[1758381610825,2.24789057,241.26,241.21,4.8157651]
[1758381611135,2.24789057,241.26,241.21,4.1457651]
[1758381611337,2.84789057,241.25,241.21,4.1457651]
[1758381611645,2.24789057,241.27,241.22,0.67]
[1758381611826,4.14429164,241.3,241.23,4.81527873]
[1758381612029,2.24789057,241.27,241.23,4.81527873]
[1758381612228,4.14429164,241.3,241.24,0.67]
[1758381612430,2.24789057,241.28,241.24,0.67]
[1758381612956,10.35909983,241.34,241.24,0.67]
[1758381612957,2.24789057,241.27,241.24,0.67]
[1758381613434,10.3592591,241.33,241.24,4.81524365]
[1758381613741,2.24789057,241.27,241.24,0.67]
[1758381614244,10.3592591,241.33,241.24,0.67]
[1758381614420,2.24789057,241.27,241.24,0.67]
[1758381615244,2.24789057,241.26,241.22,4.81558861]
[1758381615451,2.24789057,241.25,241.22,4.14558861]
[1758381615626,2.24789057,241.24,241.2,44.45587809]
[1758381615822,2.24789057,241.21,241.2,43.78587809]
[1758381616028,2.24789057,241.21,241.2,12.58587809]
[1758381616247,2.24789057,241.21,241.12,18.41284792]
[1758381616546,14.50597973,241.28,241.12,0.67]
[1758381616547,2.24789057,241.17,241.12,0.67]
[1758381616760,14.50597973,241.28,241.13,0.67]
[1758381616956,2.24789057,241.18,241.13,0.67]
[1758381617157,2.24789057,241.17,241.14,0.67]
[1758381617353,2.24789057,241.15,241.12,12.47180821]
[1758381617545,4.14615513,241.19,241.11,32.44]
[1758381617749,2.24789057,241.14,241.11,32.44]
[1758381617945,2.24789057,241.14,241.11,33.11]
[1758381618146,2.24789057,241.14,241.11,0.77]
[1758381618558,2.24789057,241.12,241.11,0.1]
[1758381618935,6.39520311,241.12,241.11,0.1]
[1758381622162,19.01137503,241.12,241.01,0.1]
[1758381622360,2.24789057,241.02,241.01,0.1]
[1758381622852,2.24789057,241.08,241.01,0.1]
[1758381623169,6.39692384,241.02,241.01,0.1]
[1758381624448,10.37122129,241.1,241.02,13.59559401]
[1758381624657,50.0,241.12,241.07,2.24789057]
[1758381624858,50.0,241.12,241.08,0.67]
[1758381625261,50.0,241.12,241.09,4.14782861]
[1758381625465,50.0,241.12,241.1,0.67]
[1758381625665,50.0,241.12,241.11,0.67]
[1758381628951,50.0,241.12,241.09,4.83782861]
[1758381629166,50.0,241.12,241.1,0.69]
[1758381629367,50.0,241.12,241.11,0.69]
[1758381630852,50.0,241.12,241.08,2.24789057]
[1758381630853,50.0,241.12,241.07,4.14801257]
[1758381631057,50.0,241.12,241.08,0.69]
[1758381631259,50.0,241.12,241.09,0.69]
[1758381631476,4.14748455,241.11,241.01,0.79]
[1758381631654,2.24789057,241.08,241.01,0.79]
[1758381632056,2.24789057,241.06,241.01,0.1]
[1758381632984,4.1485169,241.05,241.01,0.1]
[1758381633158,2.24789057,241.04,241.01,0.1]
[1758381633784,6.39640747,241.05,241.01,0.1]
[1758381634376,4.1485169,241.05,241.01,0.1]
[1758381634559,6.39640747,241.05,241.01,0.1]
[1758381635559,4.1485169,241.05,241.01,0.1]
[1758381635760,2.24789057,241.02,241.01,0.1]
[1758381637575,6.39692384,241.02,241.01,0.1]
[1758381637962,39.41692384,241.02,241.01,0.1]
[1758381638682,4.14903327,241.02,241.01,0.1]
[1758381639571,4.14886113,241.03,241.01,0.1]
[1758381640183,6.3967517,241.03,241.01,0.1]
[1758381641880,2.24789057,241.03,241.01,0.1]
[1758381642787,50.0,241.02,241.01,0.1]
[1758381643992,54.14903327,241.02,241.01,0.1]
[1758381645270,56.39692384,241.02,241.01,0.1]
[1758381647387,50.0,241.02,241.01,0.79]
[1758381648068,50.0,241.02,241.01,0.1]
[1758381648269,54.14903327,241.02,241.01,0.79]
[1758381650204,50.0,241.02,241.01,0.79]
[1758381652007,54.14903327,241.02,241.01,0.79]
[1758381652383,54.14903327,241.02,241.01,0.1]
[1758381653191,54.14903327,241.02,241.01,0.79]
[1758381653400,50.0,241.02,241.01,0.79]
[1758381653598,54.14903327,241.02,241.01,0.79]
[1758381653781,56.39692384,241.02,241.01,0.1]
[1758381654575,50.0,241.02,241.01,0.79]
[1758381654790,54.14903327,241.02,241.01,0.79]
[1758381655716,50.0,241.02,241.01,0.79]
[1758381656406,50.0,241.02,241.01,3.03789057]
[1758381656800,50.0,241.02,241.01,0.79]
[1758381657509,50.0,241.02,241.01,7.18709599]
[1758381657800,49.28,241.02,241.01,7.18709599]
[1758381660501,49.28,241.02,241.01,4.93920542]
[1758381660710,49.28,241.02,241.01,7.18709599]
[1758381663519,49.28,241.02,241.01,0.1]
[1758381663704,56.33692384,241.02,241.01,0.1]
[1758381664020,52.18789057,241.02,241.01,0.1]
[1758381664200,53.42903327,241.02,241.01,0.1]
[1758381664600,55.67692384,241.02,241.01,0.1]
[1758381665006,56.33692384,241.02,241.01,0.1]
[1758381665409,56.33692384,241.02,241.01,0.81]
[1758381665410,49.28,241.02,241.01,0.81]
[1758381665615,49.28,241.02,241.01,4.95920542]
[1758381665922,49.28,241.02,241.01,7.20709599]
[1758381669121,49.28,241.02,241.01,2.34789057]
[1758381669426,49.28,241.02,241.01,0.1]
[1758381670300,53.42903327,241.02,241.01,0.1]
[1758381670502,49.28,241.02,241.01,0.1]
[1758381671004,53.42903327,241.02,241.01,0.1]
[1758381671404,49.28,241.02,241.01,0.1]
[1758381671717,53.42903327,241.02,241.01,0.1]
[1758381671916,55.53023185,241.02,241.01,0.1]
[1758381672309,56.87823599,241.02,241.01,0.1]
[1758381672506,58.31943457,241.02,241.01,0.1]
[1758381672707,91.35943457,241.02,241.01,0.1]
[1758381673821,91.35943457,241.02,241.01,1e-08]
[1758381674126,31.2,240.99,240.98,1e-08]
[1758381674423,31.2,240.99,240.94,0.2]
[1758381674424,82.04599531,240.99,240.94,0.2]
[1758381674723,1.44119858,240.95,240.94,0.2]
[1758381674935,53.82158691,240.95,240.94,1e-08]
[1758381675134,31.2,240.92,240.81,0.1]
[1758381675340,4.1523066,240.83,240.81,0.1]
[1758381675505,1.44119858,240.82,240.81,0.1]
[1758381675712,4.31375654,240.82,240.81,0.1]
[1758381677626,31.2,240.8,240.71,0.1]
[1758381677831,3.65375654,240.77,240.71,0.1]
[1758381678031,0.66,240.79,240.71,0.1]
[1758381678233,33.06,240.79,240.71,0.1]
[1758381678426,33.06,240.79,240.73,4.36375654]
[1758381678839,33.06,240.79,240.73,0.71]
[1758381679023,36.71375654,240.79,240.72,3.65375654]
[1758381679334,45.73428012,240.81,240.71,12.67658775]
[1758381679335,4.15334136,240.77,240.71,0.1]
[1758381679539,40.8670979,240.77,240.71,0.1]
[1758381679736,3.45268399,240.88,240.76,4.56375654]
[1758381679919,4.81161705,240.87,240.8,3.65375654]
[1758381680114,33.12,240.86,240.77,0.71]
[1758381680320,0.66,240.85,240.79,3.65375654]
[1758381680557,33.12,240.84,240.79,3.65375654]
[1758381681049,33.12,240.84,240.77,0.71]
[1758381681410,4.1523066,240.83,240.78,3.65375654]
[1758381681628,37.2723066,240.83,240.79,0.71]
[1758381682052,31.2,240.87,240.82,3.65375654]
[1758381682053,64.3,240.87,240.82,3.65375654]
[1758381682341,64.3,240.87,240.83,0.71]
[1758381682550,4.15127236,240.89,240.82,3.65375654]
[1758381682845,4.15127236,240.89,240.84,4.36375654]
[1758381683018,4.15127236,240.89,240.84,3.65375654]
[1758381683218,4.15127236,240.89,240.85,0.71]
[1758381683419,4.15127236,240.89,240.84,3.65375654]
[1758381683612,4.15127236,240.89,240.86,0.71]
[1758381683813,4.15127236,240.89,240.85,0.71]
[1758381684218,0.66,240.88,240.79,0.71]
[1758381684443,0.66,240.88,240.8,3.65375654]
[1758381684636,0.66,240.88,240.81,0.71]
[1758381684833,3.65375654,240.82,240.76,0.2]
[1758381685021,3.65375654,240.78,240.76,0.2]
[1758381685342,31.2,240.79,240.76,0.2]
[1758381685941,34.85375654,240.8,240.76,0.2]
[1758381686142,4.15270782,240.81,240.76,0.9]
[1758381686445,3.65375654,240.79,240.76,0.2]
[1758381686949,3.65375654,240.88,240.77,0.7]
[1758381687145,3.65375654,240.84,240.76,0.2]
[1758381687315,34.85375654,240.84,240.76,0.2]
[1758381687519,13.59559401,240.92,240.79,3.65375654]
[1758381687520,4.15092773,240.91,240.79,3.65375654]
[1758381687720,31.2,240.88,240.79,4.35375654]
[1758381687930,4.32375654,240.87,240.77,3.65375654]
[1758381688149,35.52375654,240.87,240.77,3.65375654]
[1758381688341,4.32375654,240.87,240.77,3.65375654]
[1758381688648,4.32375654,240.87,240.78,0.7]
[1758381689222,0.67,240.87,240.79,3.65375654]
[1758381689424,4.32375654,240.87,240.79,3.65375654]
[1758381689628,4.15110004,240.9,240.84,3.65375654]
[1758381689845,4.15110004,240.9,240.84,4.35375654]
[1758381690028,35.35110004,240.9,240.84,4.35375654]
[1758381690346,4.15110004,240.9,240.84,4.35375654]
[1758381690944,4.15110004,240.9,240.85,3.65375654]
[1758381691146,4.15110004,240.9,240.85,4.35375654]
[1758381691657,20.75053247,240.96,240.78,14.53602191]
[1758381691658,4.14989417,240.97,240.89,3.65375654]
[1758381692557,4.14989417,240.97,240.88,0.7]
[1758381692850,4.14989417,240.97,240.92,3.65375654]
[1758381693152,4.14989417,240.97,240.92,4.01551308]
[1758381693528,4.24970483,240.99,240.96,3.65375654]
[1758381693731,0.1,240.99,240.96,3.65375654]
[1758381693944,4.24963745,240.99,240.96,3.65375654]
[1758381694149,4.24963745,240.99,240.95,3.65375654]
[1758381694565,14.62351188,240.99,240.87,4.15150096]
[1758381694851,14.62351188,240.99,240.93,3.65375654]
[1758381695062,14.62351188,240.99,240.92,0.7]
[1758381695233,14.62351188,240.99,240.93,3.65375654]
[1758381697749,18.94726842,240.99,240.89,0.7]
[1758381697951,18.94726842,240.99,240.84,0.7]
[1758381697952,31.2,240.96,240.84,0.7]
[1758381698139,0.67,240.95,240.89,3.65375654]
[1758381698336,46.49351188,240.99,240.92,3.65375654]
[1758381698534,46.49351188,240.99,240.91,0.7]
[1758381698926,46.49351188,240.99,240.92,3.65375654]
[1758381699128,31.2,240.96,240.9,3.65375654]
[1758381699332,4.15023863,240.95,240.9,3.65375654]
[1758381699733,14.52583522,240.95,240.88,0.7]
[1758381699934,14.52583522,240.95,240.9,3.65375654]
[1758381700146,0.67,240.94,240.86,0.7]
[1758381700660,0.67,240.94,240.87,3.65375654]
[1758381700840,0.67,240.94,240.89,3.65375654]
[1758381701243,0.67,240.94,240.86,0.7]
[1758381701244,4.15058315,240.93,240.86,0.7]
[1758381701443,14.52704104,240.93,240.86,0.7]
[1758381701639,14.52704104,240.93,240.89,3.65375654]
[1758381701941,14.52704104,240.93,240.88,3.65375654]
[1758381702265,15.19704104,240.93,240.88,3.65375654]
[1758381702957,15.19704104,240.93,240.81,33.52]
[1758381702958,0.67,240.92,240.81,33.52]
[1758381703139,0.67,240.91,240.84,3.65375654]
[1758381703340,14.52885014,240.9,240.82,0.7]
[1758381703748,4.15110004,240.9,240.89,3.65375654]
[1758381704063,4.15088668,240.92,240.89,3.65375654]
[1758381704246,14.52777527,240.92,240.81,37.67262319]
[1758381704443,15.19777527,240.92,240.87,3.65375654]
[1758381704960,14.52777527,240.92,240.87,3.65375654]
[1758381705350,10.37688859,240.92,240.87,3.65375654]
[1758381705745,0.67,240.91,240.84,3.65375654]
[1758381705947,4.1500664,240.96,240.9,3.65375654]
[1758381706151,4.1500664,240.96,240.92,3.65375654]
[1758381706339,35.3500664,240.96,240.92,3.65375654]
[1758381706667,14.5252324,240.96,240.9,3.65375654]
[1758381706846,14.5252324,240.96,240.89,0.7]
[1758381707042,4.32375654,240.95,240.85,0.7]
[1758381707347,14.52643811,240.94,240.87,3.65375654]
[1758381708476,14.52643811,240.94,240.86,0.7]
[1758381708761,15.19643811,240.94,240.86,4.35375654]
[1758381710948,31.2,240.91,240.86,4.35375654]
[1758381711150,31.2,240.91,240.87,0.7]
[1758381712365,4.15110004,240.9,240.87,0.7]
[1758381713368,14.52704104,240.93,240.87,0.7]
[1758381714458,14.52704104,240.93,240.86,3.65375654]
[1758381714761,14.52704104,240.93,240.85,0.7]
[1758381715067,14.52704104,240.93,240.86,3.65375654]
[1758381716245,0.66,240.92,240.86,3.65375654]
[1758381717552,4.15092773,240.91,240.86,3.65375654]
[1758381717752,4.15092773,240.91,240.86,4.31375654]
[1758381718470,14.52824706,240.91,240.85,3.65375654]
[1758381718675,15.18824706,240.91,240.85,3.65375654]
[1758381720873,4.15092773,240.91,240.87,3.65375654]
[1758381721075,4.15092773,240.91,240.86,0.66]
[1758381721076,4.15092773,240.91,240.89,3.65375654]
[1758381721573,4.31375654,240.9,240.68,167.22936488]
[1758381721757,3.65375654,240.83,240.77,0.66]
[1758381721956,4.31375654,240.82,240.76,0.2]
[1758381722156,4.15265146,240.81,240.76,0.2]
[1758381722581,4.15265146,240.81,240.76,0.86]
[1758381722875,0.69,240.92,240.8,3.65375654]
[1758381723082,31.89,240.92,240.86,3.65375654]
[1758381723376,2.78609146,240.91,240.85,3.65375654]
[1758381723573,2.78609146,240.92,240.86,0.66]
[1758381723772,4.84041089,240.94,240.89,3.65375654]
[1758381724081,35.35079245,240.92,240.89,3.65375654]
[1758381724671,4.2495545,240.99,240.91,3.65375654]
[1758381724877,4.2495545,240.99,240.97,3.65375654]
[1758381725081,35.4495545,240.99,240.97,3.65375654]
[1758381725601,0.1,240.99,240.98,4.31375654]
[1758381725957,0.1,240.99,240.98,17.90935055]
[1758381726173,0.1,240.99,240.98,22.05907251]
[1758381727182,49.28,241.02,240.99,13.59559401]
[1758381727364,49.28,241.02,241.01,3.65375654]
[1758381727564,49.28,241.02,241.01,17.90935055]
[1758381728276,49.28,241.02,241.01,55.35855597]
[1758381729059,49.28,241.02,241.01,22.05855597]
[1758381729295,49.28,241.02,241.01,51.18935055]
[1758381729893,49.28,241.02,241.01,17.90935055]
[1758381730103,49.28,241.02,241.01,51.18935055]
[1758381730902,49.28,241.02,241.01,37.57375654]
[1758381731798,24.36911879,241.02,241.01,84.25895484]
[1758381731982,24.36911879,241.02,241.01,50.99895484]
[1758381732173,24.36911879,241.02,241.01,84.27895484]
[1758381732377,24.36911879,241.02,241.01,45.45559401]
[1758381732578,0.69,241.08,241.01,31.2]
[1758381732779,5.54336083,241.06,241.02,33.28]
[1758381732984,4.24784062,241.09,241.02,33.28]
[1758381732985,0.69,241.05,241.02,33.28]
[1758381733203,0.69,241.05,241.01,31.2]
[1758381733496,5.54336083,241.03,241.0,33.26]
[1758381733702,0.69,241.03,241.0,33.26]
[1758381733875,5.54336083,241.04,241.0,33.42]
[1758381734083,31.2,241.08,241.02,5.54336083]
[1758381734290,4.93784062,241.09,241.02,5.54336083]
[1758381734597,5.54336083,241.08,241.01,0.66]
[1758381734798,5.54336083,241.07,241.0,5.54336083]
[1758381735004,0.69,241.06,241.02,33.42]
[1758381735198,0.69,241.05,241.02,33.42]
[1758381735896,6.23336083,241.07,241.02,33.42]
[1758381736100,0.69,241.06,241.02,33.42]
[1758381736608,4.1485169,241.05,241.02,33.42]
[1758381736806,0.69,241.06,241.02,33.42]
[1758381737012,4.1483806,241.06,241.02,33.42]
[1758381737807,6.23336083,241.08,241.02,33.42]
[1758381737808,0.1,241.09,241.04,5.54336083]
[1758381738011,0.1,241.09,241.07,5.54336083]
[1758381738210,0.1,241.09,241.08,5.54336083]
[1758381738400,0.1,241.09,241.08,38.90336083]
[1758381738707,0.1,241.09,241.08,39.56336083]
[1758381739008,50.0,241.12,241.09,13.59559401]
[1758381739182,50.0,241.12,241.11,19.13895484]
[1758381739384,50.0,241.12,241.11,19.79895484]
[1758381739799,25.08455562,241.12,241.11,19.79895484]
[1758381740203,25.08455562,241.12,241.11,53.17895484]
[1758381740514,0.18401989,241.12,241.11,53.17895484]
[1758381740713,0.18401989,241.12,241.11,57.32643939]
[1758381741126,0.1,241.19,241.12,13.59559401]
[1758381741291,0.1,241.19,241.13,33.36]
[1758381741493,0.1,241.19,241.18,5.54336083]
[1758381741795,0.1,241.19,241.18,38.90336083]
[1758381742318,4.24610887,241.19,241.18,38.88336083]
[1758381742685,4.24610887,241.19,241.18,5.54336083]
[1758381743216,4.24610887,241.19,241.18,38.86336083]
[1758381744904,4.24610887,241.19,241.18,38.84336083]
[1758381745103,4.24610887,241.19,241.13,0.66]
[1758381745411,4.24610887,241.19,241.17,5.54336083]
[1758381745710,0.1,241.19,241.18,33.28]
[1758381746494,0.1,241.19,241.18,33.94]
[1758381746691,0.1,241.19,241.18,33.92]
[1758381746921,0.1,241.19,241.18,51.66187479]
[1758381748912,0.1,241.19,241.18,51.68187479]
[1758381749104,0.1,241.19,241.18,18.40187479]
[1758381749433,0.1,241.21,241.18,18.40187479]
[1758381749633,0.1,241.21,241.2,5.54336083]
[1758381749811,0.1,241.21,241.19,33.92]
[1758381750007,0.1,241.21,241.2,33.92]
[1758381750201,0.1,241.21,241.2,39.46336083]
[1758381750817,0.1,241.21,241.2,6.20336083]
[1758381751023,0.1,241.21,241.2,39.46336083]
[1758381751219,0.1,241.21,241.2,39.44336083]
[1758381751730,0.1,241.21,241.2,6.20336083]
[1758381751908,0.1,241.21,241.2,39.44336083]
[1758381752230,0.1,241.21,241.2,5.54336083]
[1758381752520,0.1,241.21,241.2,38.76336083]
[1758381752895,0.1,241.21,241.17,0.66]
[1758381753112,0.1,241.21,241.2,5.54336083]
[1758381753308,0.1,241.21,241.2,38.74336083]